[Event "1st FIDE Olympiad DIS 2023"]
[Site "Belgrade"]
[Date "2023.02.03"]
[Round "5.15"]
[White "Shayusupov, Marsel"]
[Black "Paal-Szucs, Attila"]
[Result "1/2-1/2"]
[ECO "A61"]
[WhiteElo "1580"]
[BlackElo "2141"]
[Annotator "TA"]
[PlyCount "173"]
[EventDate "2023.01.30"]
[EventType "team-tourn"]
[EventCountry "SRB"]
[SourceTitle "playchess.com"]
[Source "ChessBase"]
[SourceQuality "1"]
[WhiteTeam "Uzbekistan"]
[BlackTeam "Hungary"]
[WhiteTeamCountry "UZB"]
[BlackTeamCountry "HUN"]
[TimeControl "40/5400+30:1800+30"]

{[%evp 13,173,29,48,6,14,-54,-47,-43,-38,-50,-47,-65,-37,-39,-39,-39,-39,-39,-46,-43,-41,-43,-32,-35,-29,-41,-29,-41,-31,-33,0,0,0,0,-14,-30,-31,-29,-21,-35,-31,-117,-92,-106,-39,-39,-39,-39,-38,-49,-40,-58,-58,-73,-67,-67,-91,-113,-121,-167,-167,-167,-167,-167,-167,-171,-154,-153,-81,-81,-81,-81,-81,-81,-81,-81,-81,-81,-81,-81,-81,-81,-89,-89,-81,-89,-89,-89,-89,-89,-89,-127,-127,-166,-166,-166,-166,-166,-166,-166,-166,-166,-166,-166,-166,-166,-166,-166,-127,-127,-127,-127,-8,-127,-8,-8,-8,-8,0,-8,0,-127,-127,-127,-127,-127,-127,-1213,-1187,-1058,-127,-127,-47,-59,0,-127,-78,-127,-127,-127,-79,-79,-79,-79,-79,-79,-79,-79,-79,-79,-21,-22,-22,-29,-22,-44,0,-44,-44,-44,-44,-44]} 1. d4 {[%emt 0:02:04]} Nf6 {[%emt 0:01:18]} 2. c4 {[%emt 0:00:11]} c5 {[%emt 0:00:34]} 3. d5 {[%emt 0:00:17]} e6 {[%emt 0:00:35]} 4. Nc3 {[%emt 0:00:33]} exd5 {[%emt 0:00:14]} 5. cxd5 {[%emt 0:00:02]} d6 {[%emt 0:00:21]} 6. Nf3 {[%emt 0:00:18]} g6 {[%emt 0:01:08]} 7. Nd2 {[%emt 0:01:42]} Nbd7 {[%emt 0:06:12][%cal Bb8d7,Bd7b6,Bb6c4][%mdl 32]} 8. Nc4 {[%emt 0:06:58] A61: Modern Benoni: Nf3 without early e4.} Nb6 {[%emt 0:00:22] [#]} 9. Bg5 {[%emt 0:01:13]} Nxc4 $15 {[%emt 0:05:31]} 10. Qa4+ {[%emt 0:00:12]} Bd7 {[%emt 0:00:25]} 11. Qxc4 {[%emt 0:00:01] And now Ne4 would win.} Bg7 {[%emt 0:01:50] [#]} 12. Ne4 $146 {[%emt 0:12:24]} ({Predecessor:} 12. e3 O-O 13. Qh4 Re8 14. Be2 b5 15. a3 b4 16. axb4 cxb4 17. Qxb4 Nxd5 18. Qh4 {1-0 Szeberenyi,A (2313)-Annageldyev,O (2371) Budapest FS03 IM 2015 (5)}) 12... Qe7 {[%emt 0:05:58]} 13. Nxf6+ {[%emt 0:13:02]} Bxf6 {[%emt 0:00:08]} 14. Bxf6 {[%emt 0:00:14]} Qxf6 {[%emt 0:00:06]} 15. Qc3 {[%emt 0:00:07]} Qxc3+ {[%emt 0:00:19]} 16. bxc3 {[%emt 0:00:01]} b5 {[%emt 0:00:33]} 17. e3 {[%emt 0:01:51]} O-O {[%emt 0:06:19]} 18. Kd2 {[%emt 0:03:01]} Rab8 {[%emt 0:00:14]} 19. Be2 {[%emt 0:03:04]} Rb6 {[%emt 0:00:12]} 20. Rhb1 {[%emt 0:01:55]} Rfb8 {[%emt 0:00:31]} 21. g4 {[%emt 0:01:46]} f6 {[%emt 0:02:44]} (21... b4 $5 {[%cal Rb4c3]} 22. c4 f5 $11) 22. h4 {[%emt 0:07:14]} b4 {[%emt 0:00:55]} 23. cxb4 {[%emt 0:00:15]} Rxb4 {[%emt 0:00:04]} 24. Rxb4 {[%emt 0:00:03]} Rxb4 $11 {[%emt 0:00:16][%mdl 4096] Endgame KRB-KRB} 25. Kc3 {[%emt 0:02:37]} Bxg4 {[%emt 0:02:27]} 26. a3 {[%emt 0:00:01]} Re4 {[%emt 0:00:26]} 27. Bd3 {[%emt 0:01:43]} (27. Bxg4 $15 Rxg4 28. Rb1) 27... Re7 $1 $17 {[%emt 0:00:35]} 28. Rb1 {[%emt 0:00:19]} Bf3 {[%emt 0:00:29]} (28... Kg7 $17 29. Kd2 Rd7) 29. Rb8+ $15 {[%emt 0:01:40]} Kg7 {[%emt 0:00:08]} 30. Rd8 {[%emt 0:00:31] Kc4 would be deadly.} Bxd5 {[%emt 0:00:35]} 31. Rxd6 {[%emt 0:00:04]} Bb7 {[%emt 0:01:56]} 32. Kc4 {[%emt 0:05:47]} Rc7 {[%emt 0:00:09]} 33. e4 {[%emt 0:12:50]} Kf7 $1 {[%emt 0:01:11]} 34. f4 {[%emt 0:03:53]} Re7 {[%emt 0:06:20]} 35. e5 {[%emt 0:11:30][%mdl 64] Deflection} fxe5 {[%emt 0:00:12]} 36. fxe5 {[%emt 0:00:02]} (36. f5 $17 e4 37. fxg6+ hxg6 38. Be2) 36... Rxe5 $19 {[%emt 0:02:38]} 37. Rd7+ {[%emt 0:00:02]} Re7 {[%emt 0:00:27]} 38. Rxe7+ {[%emt 0:00:04]} Kxe7 {[%emt 0:00:14]} 39. Kxc5 {[%emt 0:00:03] KB-KB} Ke6 {[%emt 0:00:48]} 40. Kd4 {[%emt 0:01:02]} Kf6 {[%emt 0:01:05]} (40... Bc6 $142 41. Ke3 Ke5) 41. a4 $17 {[%emt 0:36:46]} h6 {[%emt 0:34:14]} 42. a5 {[%emt 0:00:15]} g5 {[%emt 0:00:17]} 43. hxg5+ {[%emt 0:00:02]} hxg5 {[%emt 0:01:40]} 44. Be4 {[%emt 0:04:04] Prevents g4} Bc8 {[%emt 0:12:30]} ({Much weaker is} 44... Bxe4 $6 45. Kxe4 Kg7 46. Kf5 $11) 45. Bf3 {[%emt 0:00:00] [#]} Kf5 $1 {[%emt 0:00:00]} 46. Ke3 {[%emt 0:00:00]} Ke5 {[%emt 0:00:00]} 47. Bg2 {[%emt 0:00:00]} Bg4 {[%emt 0:00:00]} 48. Bb7 {[%emt 0:00:00]} Bd1 {[%emt 0:00:00]} 49. Kd2 {[%emt 0:00:00]} Bb3 {[%emt 0:00:00]} 50. Ke3 {[%emt 0:00:00]} Bd5 {[%emt 0:00:00]} 51. Bc8 {[%emt 0:00:00]} Bc6 {[%emt 0:00:00]} 52. a6 {[%emt 0:00:00]} Bd5 {[%emt 0:00:00]} 53. Kf2 {[%emt 0:00:00]} Kf4 {[%emt 0:00:00]} 54. Bd7 {[%emt 0:00:00]} Be4 {[%emt 0:00:00]} 55. Bc8 {[%emt 0:00:00]} Bf3 {[%emt 0:00:00]} 56. Bd7 {[%emt 0:00:00]} Bd1 {[%emt 0:00:00]} 57. Bc6 {[%emt 0:00:00]} Bc2 {[%emt 0:00:00]} 58. Bd5 {[%emt 0:00:00]} Bd3 {[%emt 0:00:00]} 59. Bb7 {[%emt 0:00:00]} Bc4 {[%emt 0:00:00]} 60. Bc8 {[%emt 0:00:00]} Ke4 {[%emt 0:00:00]} 61. Kg3 {[%emt 0:00:00]} Be2 {[%emt 0:01:24]} 62. Kf2 {[%emt 0:00:00]} Kd3 {[%emt 0:00:52]} (62... Bh5 $17 {...Kf4 is the strong threat.} 63. Kg3 Ke5) 63. Bd7 {[%emt 0:01:05]} (63. Bf5+ $1 $11 Kd2 64. Bc8) 63... Kd2 {[%emt 0:00:44]} (63... Bh5 $17 64. Kg3 Ke4 65. Bc6+ Kf5) 64. Bc8 $11 {[%emt 0:00:02]} Bd1 {[%emt 0:01:08]} 65. Kg3 $1 {[%emt 0:01:58]} Be2 {[%emt 0:01:59]} (65... Kc3 $5) 66. Kf2 $1 {[%emt 0:00:16]} Kd3 {[%emt 0:01:11]} (66... Bd3 $11) 67. Bd7 $17 {[%emt 0:00:07]} Bd1 {[%emt 0:00:21]} 68. Bh3 {[%emt 0:04:24]} Kd4 {[%emt 0:00:36]} 69. Bf1 {[%emt 0:00:05]} Kc5 {[%emt 0:00:35] Strongly threatening ...Ba4.} 70. Ke3 $2 {[%emt 0:00:21][%mdl 8192]} (70. Kg3 $17) 70... Bg4 $19 {[%emt 0:00:39]} 71. Bg2 {[%emt 0:05:59] [#]} Kb6 $2 {[%emt 0:00:04]} (71... Bd7 $1 $19 {and Black stays clearly on top.} 72. Bb7 Bc6) 72. Bb7 $17 {[%emt 0:00:00]} Bd7 {[%emt 0:00:19]} (72... Bd1 $17 73. Kf2 Bh5) 73. Ke4 $1 $15 {[%emt 0:00:00]} Bg4 {[%emt 0:04:33]} (73... Be6 $15) 74. Kd3 {[%emt 0:00:00]} (74. Ke3 $11 {was the only way to keep the balance.}) 74... Bf5+ {[%emt 0:02:14]} ({Black should play} 74... Bh3 {Hoping for ...Bf1+.} 75. Ke2 Be6) 75. Ke3 {[%emt 0:00:00]} (75. Kd4 $142) 75... Bc2 {[%emt 0:00:39]} 76. Bc8 {[%emt 0:00:00]} Ba4 {[%emt 0:00:20]} (76... Kc7 $142 77. Bb7 Kb6) 77. Ke4 $17 {[%emt 0:00:00]} Bb5 {[%emt 0:02:19]} 78. Kf5 {[%emt 0:00:09]} Bxa6 {[%emt 0:00:04]} 79. Be6 {[%emt 0:00:21]} Kc5 {[%emt 0:00:07] aiming for ...Bc4.} 80. Kxg5 {[%emt 0:00:05]} Bc4 {[%emt 0:00:20]} 81. Bd7 {[%emt 0:00:49]} a5 {[%emt 0:01:03]} ({Better is} 81... Bb5 $17 82. Bg4 Kd4) 82. Kf4 $11 {[%emt 0:00:04]} Kd4 {[%emt 0:05:56]} 83. Bc6 {[%emt 0:00:31]} Bd3 {[%emt 0:01:40]} 84. Bd7 {[%emt 0:00:12]} Bc4 {[%emt 0:00:51]} 85. Bc6 {[%emt 0:00:07]} Kd3 {[%emt 0:01:10]} 86. Bd7 {[%emt 0:00:11]} Kc3 {[%emt 0:00:48]} 87. Ke3 {[%emt 0:00:08] Weighted Error Value: White=0.11 (very precise) /Black=0.07 (flawless)} 1/2-1/2

[Event "1st FIDE Olympiad DIS 2023"]
[Site "Belgrade"]
[Date "2023.02.03"]
[Round "5.16"]
[White "Acs, Gabor"]
[Black "Kimsanboyev, Axadxon"]
[Result "0-1"]
[ECO "B22"]
[WhiteElo "2101"]
[BlackElo "1600"]
[Annotator "TA"]
[PlyCount "108"]
[EventDate "2023.01.30"]
[EventType "team-tourn"]
[EventCountry "SRB"]
[SourceTitle "playchess.com"]
[Source "ChessBase"]
[SourceQuality "1"]
[WhiteTeam "Hungary"]
[BlackTeam "Uzbekistan"]
[WhiteTeamCountry "HUN"]
[BlackTeamCountry "UZB"]
[TimeControl "40/5400+30:1800+30"]

{[%evp 12,108,24,5,0,3,9,9,12,13,64,0,16,0,0,0,0,0,6,-16,-15,-12,-19,-25,-13,-33,-24,-46,-52,-81,-68,-68,-45,-29,-10,-30,-32,-52,-31,-52,-2,-138,-146,-148,-139,-132,-31,-75,-26,-80,-27,-81,-10,-183,-174,-263,-283,-330,-318,-309,-296,-393,-333,-367,-377,-368,-340,-349,-335,-393,-375,-448,-458,-441,-439,-548,-549,-493,-375,-754,-726,-716,-751,-1244,-1160,-1327,-1387,-1287,-1164,-29981,-29983,-29983,-29984,-29981,-29982,-29989,-29990,-29990,-29991]} 1. e4 {[%emt 0:00:05]} c5 {[%emt 0:00:13]} 2. c3 {[%emt 0:00:06]} Nf6 {[%emt 0:00:05]} 3. e5 {[%emt 0:00:08]} Nd5 {[%emt 0:00:05]} 4. d4 {[%emt 0:00:32]} cxd4 {[%emt 0:00:08]} 5. Nf3 {[%emt 0:00:15]} e6 {[%emt 0:01:39]} 6. cxd4 {[%emt 0:01:01]} b6 {[%emt 0:00:11]} 7. Bd2 {[%emt 0:00:34]} Bb7 $1 {[%emt 0:00:31] 7...Bb7 is better than 7...Be7. B22: Sicilian: 2 c3.} 8. Nc3 {[%emt 0:00:07]} Nxc3 {[%emt 0:01:28]} 9. Bxc3 {[%emt 0:00:07]} Be7 {[%emt 0:00:10] The position is equal.} 10. Bd3 {[%emt 0:00:26]} O-O {[%emt 0:00:47]} (10... Bd5 $11) 11. O-O {[%emt 0:00:08]} (11. h4 $14 {might be stronger.}) 11... d6 $11 {[%emt 0:00:11]} 12. Qe2 {[%emt 0:01:16]} Nd7 {[%emt 0:03:39][%cal Bb8d7,Bd7c5,Bc5a6,Ba6c7][%mdl 32]} 13. Rfd1 {[%emt 0:01:17]} Qc7 {[%emt 0:04:18]} 14. Rac1 {[%emt 0:04:41] next Bb4 is good for White.} Rac8 {[%emt 0:02:08] [#]} 15. Nd2 $146 {[%emt 0:16:30]} ({Predecessor:} 15. Bb5 Rfd8 16. Bb4 Qxc1 17. Rxc1 Rxc1+ 18. Ne1 Bf8 19. Bd2 Rc7 20. f4 dxe5 21. fxe5 {0-1 Wengler,J (2081)-Gypser,A (2199) Bayern-chI Bank Hofmann 4th 2000 (7)}) 15... dxe5 $1 {[%emt 0:17:12]} 16. dxe5 {[%emt 0:00:40]} Nc5 {[%emt 0:02:11]} 17. Bb1 {[%emt 0:02:59]} Qc6 {[%emt 0:04:34][%csl Gb7][%cal Rc6g2]} 18. f3 {[%emt 0:04:09]} Ba6 $40 {[%emt 0:09:40][%mdl 128] Black is up to no good.} (18... Bg5 {is interesting.} 19. Bd4 Qd5 20. Bf2 Ba6) 19. Qe1 {[%emt 0:00:49]} (19. Qe3 {with more complications.} Qb5 20. Ne4 Nxe4 21. Bxe4 Rfd8 22. Kh1) 19... Bd3 {[%emt 0:00:46]} 20. b4 {[%emt 0:12:02] [#]} Bxb1 $1 {[%emt 0:00:39]} 21. Nxb1 {[%emt 0:00:10]} Na6 {[%emt 0:05:25]} (21... Na4 $5 {[%cal Ra4c3]}) 22. a3 {[%emt 0:16:49]} Qb7 {[%emt 0:04:12]} 23. Rd3 {[%emt 0:02:28]} Rfd8 {[%emt 0:00:15]} 24. Rcd1 {[%emt 0:00:16]} Nc7 {[%emt 0:00:53]} 25. Rd7 {[%emt 0:02:46]} Kf8 {[%emt 0:00:46]} (25... Rxd7 $15 26. Rxd7 Bf8) 26. b5 {[%emt 0:07:28]} (26. Rxd8+ $1 $11 Rxd8 27. Rxd8+ Bxd8 28. Bd2) 26... Rxd7 $17 {[%emt 0:03:57]} 27. Rxd7 {[%emt 0:00:09]} Ke8 {[%emt 0:01:46]} 28. Qd2 {[%emt 0:07:44][%cal Od7e7] Threatens to win with Rxe7+!} Rd8 {[%emt 0:00:12]} (28... Bc5+ $17 29. Kf1 Qa8) 29. Rxd8+ $15 {[%emt 0:01:13]} Bxd8 {[%emt 0:00:04]} 30. Qd3 {[%emt 0:06:57]} (30. a4 $1 $11) 30... g6 {[%emt 0:02:37]} ({Better is} 30... Qd5 $17 31. Qxd5 exd5) 31. Nd2 {[%emt 0:01:52]} (31. a4 $11 {keeps the balance.}) 31... Be7 {[%emt 0:07:44]} (31... Qd5 $17 32. Qxd5 exd5) 32. Ne4 $2 {[%emt 0:01:06] This costs White the game.} (32. a4 $1 $11 {and White is okay.}) 32... Qd5 $1 $19 {[%emt 0:00:36]} 33. Qe3 {[%emt 0:03:55]} (33. Qc2 {is a better defense.}) 33... Nxb5 {[%emt 0:00:47]} 34. Bb4 {[%emt 0:01:30]} Qxe5 {[%emt 0:02:42] Hoping for ...Bxb4.} 35. Bxe7 {[%emt 0:00:36]} Kxe7 {[%emt 0:00:20][%mdl 4096] Endgame KQN-KQN} 36. a4 {[%emt 0:01:49]} Qd4 {[%emt 0:00:23]} 37. Kf2 {[%emt 0:00:48]} Qxe3+ {[%emt 0:00:10]} 38. Kxe3 {[%emt 0:00:01] KN-KN} Nd6 {[%emt 0:00:32] aiming for ...Nxe4.} 39. Nc3 {[%emt 0:00:31]} a6 {[%emt 0:00:15]} 40. g4 {[%emt 0:00:20]} f6 {[%emt 0:02:45]} 41. f4 {[%emt 0:30:28]} Kd7 {[%emt 0:30:30]} 42. Kd4 {[%emt 0:00:23]} Kc6 {[%emt 0:00:08]} 43. g5 {[%emt 0:00:52]} fxg5 {[%emt 0:00:33]} 44. fxg5 {[%emt 0:00:05]} Nf7 {[%emt 0:03:09]} 45. h4 $2 {[%emt 0:00:14]} (45. Ne4) 45... e5+ {[%emt 0:03:12]} 46. Ke4 {[%emt 0:01:00]} Kc5 {[%emt 0:00:07]} 47. Nd5 {[%emt 0:00:15]} b5 {[%emt 0:01:21]} 48. axb5 {[%emt 0:00:06]} axb5 {[%emt 0:00:07][%cal Ba6b5,Bb5b4,Bb4b3,Bb3b2][%mdl 32]} 49. Nf6 {[%emt 0:00:06]} b4 {[%emt 0:00:38]} 50. Nxh7 {[%emt 0:00:56]} b3 {[%emt 0:00:06] Black mates.} 51. Kd3 {[%emt 0:00:05] [#]} e4+ $1 {[%emt 0:00:06][%cal Be5e4,Be4e3,Be3e2][%mdl 544]} 52. Kc3 {[%emt 0:00:10]} e3 {[%emt 0:00:06]} 53. h5 {[%emt 0:02:44]} e2 {[%emt 0:00:20]} 54. Kd2 {[%emt 0:01:01]} b2 {[%emt 0:00:06] Weighted Error Value: White=0.64/Black=0.15 (very precise)} 0-1

[Event "1st FIDE Olympiad DIS 2023"]
[Site "Belgrade"]
[Date "2023.02.03"]
[Round "5.17"]
[White "Sarkar, Justin"]
[Black "Alam, Khorshed"]
[Result "1-0"]
[ECO "D11"]
[WhiteElo "2345"]
[BlackElo "2065"]
[Annotator "TA"]
[PlyCount "47"]
[EventDate "2023.01.30"]
[EventType "team-tourn"]
[EventCountry "SRB"]
[SourceTitle "playchess.com"]
[Source "ChessBase"]
[SourceQuality "1"]
[WhiteTeam "FIDE"]
[BlackTeam "Bangladesh"]
[WhiteTeamCountry "USA"]
[BlackTeamCountry "BAN"]
[TimeControl "40/5400+30:1800+30"]

{[%evp 9,47,20,54,55,82,82,77,82,79,52,60,53,61,27,26,18,26,28,18,31,17,18,21,16,75,38,83,73,66,20,173,169,392,252,905,902,882,881,796,544]} 1. d4 {[%emt 0:00:40]} d5 {[%emt 0:00:48]} 2. c4 {[%emt 0:00:12]} c6 {[%emt 0:00:33]} 3. Nf3 {[%emt 0:00:09]} Nf6 {[%emt 0:00:57]} 4. Nbd2 {[%emt 0:02:46]} Qa5 {[%emt 0:02:18]} 5. e3 {[%emt 0:00:31][%cal Be2e3,Be3e4][%mdl 32]} Bg4 {[%emt 0:02:34]} 6. Qb3 {[%emt 0:11:53] D11: Slav Defence: 3 Nf3 sidelines and 3...Nf6 4 e3 Bg4.} Qc7 {[%emt 0:06:22]} 7. Ne5 {[%emt 0:06:54] [#]} Bf5 $146 {[%emt 0:01:25]} ({Predecessor:} 7... e6 8. h3 Bf5 9. g4 Be4 10. Nxe4 Nxe4 11. Bg2 Nf6 12. Bd2 Nbd7 13. f4 Nxe5 14. fxe5 dxc4 15. Qxc4 {1-0 Rogers,I (2558)-Stead,K (2125) Australian op 2000 (5)}) 8. cxd5 {[%emt 0:23:08] White is better.} cxd5 {[%emt 0:00:16] [#]} 9. e4 $1 {[%emt 0:00:37]} Be6 {[%emt 0:01:37]} 10. Bb5+ {[%emt 0:00:11]} Nc6 {[%emt 0:00:16]} 11. Qa4 {[%emt 0:13:18] White is more active.} dxe4 {[%emt 0:08:09]} 12. Nxc6 {[%emt 0:00:14]} bxc6 {[%emt 0:00:07]} 13. Bxc6+ {[%emt 0:00:05]} Bd7 {[%emt 0:00:06]} 14. Bxd7+ {[%emt 0:00:08]} (14. Nxe4 $2 Bxc6 15. Nxf6+ gxf6 $19) 14... Qxd7 {[%emt 0:00:18]} 15. Qxd7+ {[%emt 0:00:11]} Kxd7 {[%emt 0:00:03]} 16. O-O {[%emt 0:00:36]} Kc6 {[%emt 0:00:41]} (16... e6 $11 {remains equal.}) 17. Re1 {[%emt 0:00:32][%cal Od2c4]} Kd5 {[%emt 0:00:02]} 18. Nb1 {[%emt 0:00:54]} Kxd4 {[%emt 0:00:43]} 19. Nc3 {[%emt 0:01:38]} (19. Bf4 $14 {is superior.}) 19... e6 $2 {[%emt 0:00:51] [#] Loses the game.} (19... Ke5 $1 $11) 20. Bf4 $1 $36 {[%emt 0:02:38][%mdl 2048] Strongly threatening Rac1. Keeping Black busy.} Bb4 $2 {[%emt 0:01:08]} (20... Kc5) 21. Rac1 {[%emt 0:04:46] Threatening mate with Nb5+.} Bxc3 {[%emt 0:00:52]} (21... Kc5 22. Nd5+ (22. Nxe4+ Kb5 $11) 22... Kb5 23. Nxb4 Kxb4) 22. Rxc3 {[%emt 0:01:51][%cal Re1d1] White is clearly winning.} e3 {[%emt 0:02:09]} 23. f3 {[%emt 0:00:15][%cal Re1d1]} ({Weaker is} 23. fxe3+ Ke4 $16) ({Not} 23. Bxe3+ Kd5 24. Rc7 Rhf8 $16) (23. Rcxe3 Rac8 24. Rb3 Kd5 $16) (23. Rexe3 Rhc8 $16) 23... Ne4 {[%emt 0:00:54]} 24. Rd1+ {[%emt 0:00:17] Weighted Error Value: White=0.24 (precise) /Black=0.57} 1-0

[Event "1st FIDE Olympiad DIS 2023"]
[Site "Belgrade"]
[Date "2023.02.03"]
[Round "5.17"]
[White "Bozinovic, Bogdan"]
[Black "Sahin, Handenur"]
[Result "1/2-1/2"]
[ECO "D24"]
[WhiteElo "2131"]
[BlackElo "1915"]
[Annotator "TA"]
[PlyCount "46"]
[EventDate "2023.01.30"]
[EventType "team-tourn"]
[EventCountry "SRB"]
[SourceTitle "playchess.com"]
[Source "ChessBase"]
[SourceQuality "1"]
[WhiteTeam "Croatia"]
[BlackTeam "Turkey"]
[WhiteTeamCountry "CRO"]
[BlackTeamCountry "TUR"]
[TimeControl "40/5400+30:1800+30"]

{[%evp 14,46,3,3,0,0,8,12,13,6,11,2,12,-20,0,-27,-8,-45,-33,-35,-43,-47,-33,-42,-35,-102,0,-12,-10,-12,9,4,6,0,0]} 1. d4 {[%emt 0:00:36]} d5 {[%emt 0:01:01]} 2. c4 {[%emt 0:00:30]} dxc4 {[%emt 0:01:41]} 3. Nf3 {[%emt 0:02:05]} Nf6 {[%emt 0:00:15]} 4. Nc3 {[%emt 0:00:54]} a6 {[%emt 0:03:54]} 5. e4 {[%emt 0:01:02][%cal Be2e4,Be4e5][%mdl 32]} b5 {[%emt 0:01:28]} 6. e5 {[%emt 0:01:04]} Nd5 {[%emt 0:00:56]} 7. a4 {[%emt 0:00:26]} e6 {[%emt 0:02:36]} 8. axb5 {[%emt 0:00:27]} Bb4 {[%emt 0:01:53] seems to push 8...Nb6 aside. D24: Queen's Gambit Accepted: 3 Nf3 Nf6 4 Nc3.} 9. Bd2 {[%emt 0:03:40]} (9. Bxc4 Nxc3 10. bxc3 Bxc3+ 11. Bd2 Bxa1 12. Qxa1 Bb7 $17) 9... Nb6 {[%emt 0:02:43]} 10. bxa6 {[%emt 0:11:53]} Nxa6 {[%emt 0:05:49]} 11. Be2 {[%emt 0:02:24]} Bb7 {[%emt 0:07:57]} 12. O-O {[%emt 0:00:49]} O-O {[%emt 0:07:49] [#]} 13. Qc2 $146 {[%emt 0:02:04]} ({Predecessor:} 13. Na4 c5 14. dxc5 Bxc5 15. Nxc5 Nxc5 16. Be3 Nd3 17. Rxa8 Bxa8 18. b3 Bxf3 19. Bxf3 {½-½ Mamedyarov,S (2762)-Kasimdzhanov,R (2691) Amir Timur 680 rapid 2016 (2)}) 13... Be7 {[%emt 0:06:26]} 14. Ne4 {[%emt 0:08:26]} Qd5 {[%emt 0:14:05]} 15. Neg5 {[%emt 0:04:31]} Bxg5 {[%emt 0:05:55]} 16. Bxg5 {[%emt 0:00:04]} Nb4 {[%emt 0:04:15]} 17. Qd2 {[%emt 0:05:43]} Nc6 {[%emt 0:04:01]} 18. Rfc1 {[%emt 0:05:43]} Na5 {[%emt 0:03:33] [#] Threatens to win with ...Nb3.} 19. Qb4 {[%emt 0:08:05]} (19. Bd1 $1 $15) 19... Nc6 {[%emt 0:03:26]} (19... Nb3 $17 20. Rxa8 (20. Bxc4 $2 {too greedy.} Qxc4 21. Qxc4 Nxc4 $19) 20... Rxa8) 20. Qc3 {[%emt 0:02:45] The position is equal.} h6 {[%emt 0:03:18]} 21. Be3 {[%emt 0:00:39]} (21. Bxc4 $2 {is the wrong capture.} Qxc4 22. Rxa8 Rxa8 $19) 21... Rxa1 {[%emt 0:01:26]} 22. Rxa1 {[%emt 0:00:07]} Rd8 {[%emt 0:06:45]} 23. Rc1 {[%emt 0:00:06]} Na5 {[%emt 0:00:08] Weighted Error Value: White=0.14 (very precise) /Black=0.16 (very precise)} 1/2-1/2